bitfinex/quotes_BTCUSD_20230403
["timestamp","ask_amount","ask_price","bid_price","bid_amount"]
[1680535453967,0.13611,28081.0,28080.0,0.033986]
[1680535454420,0.13536523,28081.0,28080.0,0.033806]
[1680535455092,0.05151,28081.0,28080.0,0.033806]
[1680535455311,0.0774,28081.0,28080.0,0.033806]
[1680535455540,0.127378,28081.0,28080.0,0.033806]
[1680535455771,0.002,28081.0,28080.0,0.033806]
[1680535456904,0.0757,28084.0,28080.0,0.017806]
[1680535457131,0.002,28081.0,28080.0,0.033806]
[1680535457346,0.046842,28082.0,28080.0,0.017806]
[1680535457585,0.42062423,28081.0,28080.0,0.016]
[1680535457814,0.46886723,28081.0,28080.0,0.016]
[1680535458545,0.123543,28081.0,28078.0,0.017807]
[1680535458780,0.65853816,28085.0,28080.0,0.017806]
[1680535458781,0.00018,28083.0,28080.0,0.017806]
[1680535458999,0.0757,28085.0,28080.0,0.017806]
[1680535459237,0.001,28081.0,28080.0,0.023806]
[1680535459449,0.0757,28085.0,28080.0,0.02809]
[1680535459671,0.002,28081.0,28080.0,0.017806]
[1680535459894,0.083408,28085.0,28080.0,0.028088]
[1680535460127,0.002,28081.0,28080.0,0.032986]
[1680535460350,0.002,28081.0,28080.0,0.043483]
[1680535460581,0.002,28081.0,28080.0,0.04391163]
[1680535461223,0.0753,28087.0,28080.0,0.02891163]
[1680535461454,0.002,28081.0,28080.0,0.12925999]
[1680535461671,0.002,28081.0,28080.0,0.04354263]
[1680535461899,0.002,28081.0,28080.0,0.03341463]
[1680535462755,0.0754,28088.0,28080.0,0.03739063]
[1680535462976,0.002,28081.0,28080.0,0.04191463]
[1680535463874,0.002,28081.0,28080.0,0.03341463]
[1680535464304,0.64364502,28088.0,28080.0,0.01841463]
[1680535464521,0.002,28081.0,28080.0,0.03341463]
[1680535464750,0.4198217,28087.0,28080.0,0.01841463]
[1680535464967,0.4198217,28087.0,28080.0,0.03341463]
[1680535464968,0.002,28081.0,28080.0,0.03341463]
[1680535468293,0.002,28081.0,28080.0,0.06884663]
[1680535468537,0.002,28081.0,28080.0,0.06902663]
[1680535468788,0.34538764,28081.0,28080.0,0.03341463]
[1680535469054,0.00018,28083.0,28080.0,0.03323463]
[1680535469295,0.04765,28083.0,28080.0,0.03323463]
[1680535470198,0.04765,28083.0,28080.0,0.01823463]
[1680535470440,0.04965,28083.0,28080.0,0.03523463]
[1680535470905,0.046065,28082.0,28080.0,0.03523463]
[1680535471127,0.049599,28083.0,28080.0,0.03523463]
[1680535471705,0.047599,28083.0,28080.0,0.01823463]
[1680535471901,0.002,28082.0,28080.0,0.03523463]
[1680535472708,0.047599,28083.0,28080.0,0.01823463]
[1680535473102,0.049599,28083.0,28080.0,0.03523463]
[1680535473537,0.047599,28083.0,28080.0,0.01823463]
[1680535473798,0.002,28082.0,28080.0,0.03523463]
[1680535474023,0.049835,28082.0,28080.0,0.03523463]
[1680535474250,0.0468,28081.0,28080.0,0.05223463]
[1680535475417,0.50530006,28081.0,28080.0,0.05223463]
[1680535475884,0.50530006,28081.0,28080.0,0.01823463]
[1680535476110,0.50730006,28081.0,28080.0,0.03323463]
[1680535476328,0.50530006,28081.0,28080.0,0.01823463]
[1680535476550,0.50730006,28081.0,28080.0,0.03323463]
[1680535476773,0.50530006,28081.0,28080.0,0.01823463]
[1680535477006,0.50630006,28081.0,28080.0,0.03123463]
[1680535477306,0.50630006,28081.0,28080.0,0.01342863]
[1680535477749,0.58988445,28081.0,28080.0,0.01342863]
[1680535477770,0.50648006,28081.0,28080.0,0.01342863]
[1680535478023,0.58970445,28081.0,28080.0,0.01342863]
[1680535478670,0.88870445,28081.0,28080.0,0.00042863]
[1680535478891,0.89470445,28081.0,28080.0,0.00142863]
[1680535479126,0.88870445,28081.0,28080.0,0.00042863]
[1680535479337,0.90870445,28081.0,28080.0,0.00142863]
[1680535479753,0.82530006,28081.0,28080.0,0.00142863]
[1680535480825,1.19800006,28081.0,28080.0,0.00142863]
[1680535481117,1.28140445,28081.0,28080.0,0.00142863]
[1680535482143,1.58140445,28081.0,28080.0,0.00142863]
[1680535482494,1.58140445,28081.0,28072.0,0.00018]
[1680535482495,0.3727,28079.0,28072.0,0.00018]
[1680535482722,0.3727,28079.0,28070.0,0.00018]
[1680535482723,0.0753,28074.0,28070.0,0.00018]
[1680535482971,0.0753,28074.0,28070.0,0.017812]
[1680535482972,0.53369475,28073.0,28070.0,0.017812]
[1680535483124,0.10918248,28072.0,28070.0,0.00018]
[1680535483390,0.39318184,28071.0,28070.0,0.00018]
[1680535483603,0.39318184,28071.0,28070.0,0.017992]
[1680535484919,0.39318184,28071.0,28070.0,0.030992]
[1680535485147,0.39318184,28071.0,28070.0,0.017992]
[1680535485385,0.39518184,28071.0,28070.0,0.030992]
[1680535485824,0.44078997,28071.0,28070.0,0.030992]
[1680535486051,0.43878997,28071.0,28070.0,0.017992]
[1680535486331,0.44078997,28071.0,28070.0,0.030992]
[1680535486767,0.51648997,28071.0,28070.0,0.01318]
[1680535487223,0.47088184,28071.0,28070.0,0.01318]
[1680535487452,0.46888184,28071.0,28069.0,0.017993]
[1680535487693,0.124922,28070.0,28069.0,0.00018]
[1680535487910,0.46970521,28070.0,28069.0,0.00018]
[1680535488382,0.46970521,28070.0,28069.0,0.017993]
[1680535488609,0.51667573,28070.0,28069.0,0.017993]
[1680535488896,0.46970521,28070.0,28069.0,0.017993]
[1680535489370,0.46970521,28070.0,28069.0,0.024993]
[1680535489606,0.47070521,28070.0,28069.0,0.024993]
[1680535490290,0.46970521,28070.0,28069.0,0.017993]
[1680535490511,0.51767573,28070.0,28069.0,0.024993]
[1680535490757,0.51667573,28070.0,28069.0,0.017993]
[1680535490992,0.46970521,28070.0,28069.0,0.024993]
[1680535491214,0.46970521,28070.0,28069.0,0.017993]
[1680535491698,0.47070521,28070.0,28069.0,0.024993]
[1680535491936,0.39400521,28070.0,28069.0,0.017993]
[1680535492162,0.39500521,28070.0,28069.0,0.024993]
[1680535492393,0.39500521,28070.0,28069.0,0.017993]
[1680535492394,0.39400521,28070.0,28069.0,0.017993]
[1680535493089,0.44097573,28070.0,28069.0,0.017993]
[1680535493779,0.39400521,28070.0,28069.0,0.017993]
[1680535494046,0.39500521,28070.0,28069.0,0.024993]
[1680535494493,0.39400521,28070.0,28069.0,0.017993]
[1680535494715,0.39500521,28070.0,28069.0,0.024993]
[1680535494932,0.34478321,28070.0,28069.0,0.017993]
[1680535495178,0.34578321,28070.0,28069.0,0.024993]
[1680535495981,0.34478321,28070.0,28069.0,0.017993]
[1680535496242,0.34578321,28070.0,28069.0,0.024993]
[1680535496475,0.34478321,28070.0,28069.0,0.017993]
[1680535496712,0.39606521,28070.0,28069.0,0.024993]
[1680535496905,0.39506521,28070.0,28069.0,0.017993]
[1680535497133,0.39606521,28070.0,28069.0,0.024993]
[1680535497596,0.39506521,28070.0,28069.0,0.017993]
[1680535497832,0.39606521,28070.0,28069.0,0.024993]
[1680535498083,0.0757,28073.0,28069.0,0.017993]
[1680535498311,0.34459284,28072.0,28069.0,0.017993]
[1680535498997,0.001,28070.0,28069.0,0.024993]
[1680535499265,0.34459284,28072.0,28069.0,0.017993]
[1680535499483,0.34559284,28072.0,28069.0,0.024993]
[1680535499718,0.34459284,28072.0,28069.0,0.017993]
[1680535499939,0.001,28070.0,28069.0,0.024993]
[1680535500444,0.38662212,28072.0,28069.0,0.017993]
[1680535500674,0.38862212,28072.0,28069.0,0.030993]
[1680535500898,0.38662212,28072.0,28069.0,0.017993]
[1680535501628,0.049378,28071.0,28069.0,0.017993]
[1680535501861,0.002,28070.0,28069.0,0.030993]
[1680535502093,0.38862212,28072.0,28069.0,0.030993]
[1680535502327,0.08797421,28071.0,28069.0,0.030993]
[1680535502554,0.03886221,28071.0,28069.0,0.017993]
[1680535502795,0.04086221,28071.0,28069.0,0.030993]
[1680535503069,0.04086221,28071.0,28069.0,0.017993]
[1680535503070,0.03886221,28071.0,28069.0,0.017993]
[1680535503293,0.03886221,28071.0,28069.0,0.030993]
[1680535503524,0.03854551,28070.0,28069.0,0.017993]
[1680535503767,0.03854551,28070.0,28069.0,0.030993]
[1680535503996,0.00018,28070.0,28069.0,0.030813]
[1680535504248,0.002,28071.0,28069.0,0.030813]
[1680535504938,0.34459284,28072.0,28069.0,0.017813]
[1680535505170,0.002,28070.0,28069.0,0.030813]
[1680535505405,0.34459284,28072.0,28069.0,0.017813]
[1680535505697,0.049566,28071.0,28069.0,0.030813]
[1680535505925,0.34459284,28072.0,28069.0,0.017813]
[1680535506064,0.03447728,28071.0,28069.0,0.030813]
[1680535506890,0.34459284,28072.0,28069.0,0.017813]
[1680535507106,0.050553,28071.0,28069.0,0.017813]
[1680535507379,0.34459284,28072.0,28069.0,0.017813]
[1680535507613,0.046606,28070.0,28069.0,0.017813]
[1680535507852,0.39138921,28070.0,28069.0,0.013]
[1680535508068,0.48322367,28070.0,28069.0,0.030812]
[1680535508286,0.43631475,28070.0,28069.0,0.030812]
[1680535508511,0.43631475,28070.0,28069.0,0.017812]
[1680535508747,0.43831475,28070.0,28069.0,0.030812]
[1680535509238,0.43905775,28070.0,28069.0,0.030812]
[1680535509773,0.49105053,28070.0,28069.0,0.030812]
[1680535510035,0.49336753,28070.0,28069.0,0.030812]
[1680535510535,0.44187375,28070.0,28069.0,0.030812]
[1680535511872,0.39170875,28070.0,28069.0,0.030812]
[1680535512129,0.43770575,28070.0,28069.0,0.030812]
[1680535512979,0.43770575,28070.0,28069.0,0.03069237]
[1680535514109,0.43770575,28070.0,28069.0,0.013]
[1680535514332,0.52906433,28070.0,28069.0,0.013]
[1680535514827,0.80476433,28070.0,28069.0,0.013]
[1680535515038,0.80494433,28070.0,28069.0,0.013]
[1680535516152,0.4,28068.0,28067.0,0.017814]
[1680535516396,0.79228507,28068.0,28067.0,0.017814]
[1680535516608,0.91270999,28068.0,28067.0,0.017814]
[1680535516834,0.91270999,28068.0,28066.0,0.017814]
[1680535516835,0.047798,28067.0,28066.0,0.017814]
[1680535517082,0.39296202,28067.0,28066.0,0.017814]
[1680535517980,0.39396202,28067.0,28066.0,0.024814]
[1680535519668,0.34616402,28067.0,28066.0,0.024814]
[1680535519896,0.42156402,28067.0,28066.0,0.024814]
[1680535520134,0.55494052,28067.0,28066.0,0.024814]
[1680535520347,0.55494052,28067.0,28066.0,0.007]
[1680535520801,0.55512052,28067.0,28066.0,0.007]
[1680535521248,0.55494052,28067.0,28066.0,0.007]
[1680535521701,0.55512052,28067.0,28066.0,0.007]
[1680535522133,0.55494052,28067.0,28066.0,0.007]
[1680535522877,0.55512052,28067.0,28066.0,0.007]
[1680535524068,0.55494052,28067.0,28066.0,0.007]
[1680535524521,0.55494052,28067.0,28066.0,0.007]
[1680535525422,0.55512052,28067.0,28066.0,0.007]
[1680535525659,0.85512052,28067.0,28066.0,0.007]
[1680535526130,0.4,28065.0,28063.0,0.0209]
[1680535526363,0.50911541,28064.0,28063.0,0.0209]
[1680535528197,0.50911541,28064.0,28063.0,0.0219]
[1680535528881,0.50911541,28064.0,28063.0,0.0209]
[1680535529102,0.50911541,28064.0,28063.0,0.0219]
[1680535529337,0.50911541,28064.0,28063.0,0.0209]
[1680535529566,0.51511541,28064.0,28063.0,0.0219]
[1680535529798,0.50911541,28064.0,28063.0,0.0209]
[1680535530294,0.46911541,28064.0,28063.0,0.0209]
[1680535530497,0.34548141,28064.0,28063.0,0.038717]
[1680535531443,0.35148141,28064.0,28063.0,0.039717]
[1680535531686,0.34548141,28064.0,28063.0,0.038717]
[1680535531920,0.3844725,28064.0,28063.0,0.038717]
[1680535532151,0.3904725,28064.0,28063.0,0.039717]
[1680535532625,0.04499109,28064.0,28063.0,0.039717]
[1680535532894,0.04499109,28064.0,28063.0,0.249769]
[1680535533134,0.04499109,28064.0,28063.0,0.699949]
[1680535533852,0.006,28064.0,28063.0,0.699949]
[1680535534334,0.4,28071.0,28063.0,0.698949]
[1680535534560,0.002,28064.0,28063.0,0.700897]
[1680535534791,0.11308291,28064.0,28063.0,0.71114]
[1680535535012,0.11508291,28064.0,28063.0,0.71114]
[1680535535235,0.11308291,28064.0,28063.0,0.78421482]
[1680535535501,0.11308291,28064.0,28063.0,0.79621482]
[1680535535748,0.00018,28069.0,28063.0,0.79621482]
[1680535535967,0.34522749,28069.0,28064.0,0.008093]
[1680535536191,0.42397004,28069.0,28065.0,0.124706]
[1680535536885,0.1131428,28068.0,28065.0,0.124706]
[1680535537789,0.1131428,28068.0,28065.0,0.136706]
[1680535538059,0.1131428,28068.0,28065.0,0.124706]
[1680535538514,0.1151428,28068.0,28065.0,0.136706]
[1680535538740,0.00018,28070.0,28065.0,0.124706]
[1680535538974,0.002,28068.0,28065.0,0.26206208]
[1680535539231,0.002,28068.0,28066.0,0.0109]
[1680535539453,0.002,28068.0,28067.0,0.053443]
[1680535542459,0.39658561,28068.0,28067.0,0.012]
[1680535542679,0.39676561,28068.0,28067.0,0.012]
[1680535546818,0.50915568,28068.0,28067.0,0.012]
[1680535547498,0.4,28066.0,28064.0,0.017816]
[1680535547721,0.4,28066.0,28063.0,0.0209]
[1680535547722,0.39241545,28065.0,28063.0,0.038716]
[1680535547948,0.050051,28064.0,28063.0,0.038716]
[1680535548660,0.3955959,28064.0,28063.0,0.038716]
[1680535548880,0.3955959,28064.0,28063.0,0.0209]
[1680535549325,0.3955959,28064.0,28063.0,0.0319]
[1680535549540,0.47537349,28064.0,28063.0,0.038717]
[1680535549794,0.47737349,28064.0,28063.0,0.0319]
[1680535550227,0.002,28064.0,28063.0,0.049717]
[1680535550459,0.00018,28067.0,28063.0,0.345112]
[1680535550702,0.00868916,28073.0,28066.0,0.2846]
[1680535550703,0.00018,28070.0,28066.0,0.2846]
[1680535551001,2.0,28070.0,28067.0,0.62231148]
[1680535551159,2.00018,28070.0,28068.0,0.007686]
[1680535551382,2.00018,28070.0,28069.0,0.053439]
[1680535551836,2.0,28070.0,28069.0,0.053439]
[1680535552506,2.0,28070.0,28069.0,0.081439]
[1680535552729,2.0,28070.0,28069.0,0.053439]
[1680535552946,2.0,28070.0,28069.0,0.071439]
[1680535553169,2.0,28070.0,28069.0,0.053439]
[1680535553387,2.0,28070.0,28069.0,0.081439]
[1680535553860,2.0,28070.0,28069.0,0.053439]
[1680535554088,2.34478321,28070.0,28069.0,0.053439]
[1680535554307,2.4778668,28070.0,28069.0,0.053439]
[1680535554531,2.4778668,28070.0,28069.0,0.017813]
[1680535554754,2.5241008,28070.0,28069.0,0.018]
[1680535555209,2.9241008,28070.0,28069.0,0.018]
[1680535555658,2.9242808,28070.0,28069.0,0.018]
[1680535556331,2.9242808,28070.0,28069.0,0.035813]
[1680535556860,2.9242808,28070.0,28069.0,0.018]
[1680535557627,2.9242808,28070.0,28069.0,0.035813]
[1680535558944,2.9242808,28070.0,28069.0,0.018]
[1680535559724,2.79119721,28070.0,28069.0,0.035813]
[1680535560017,2.34496321,28070.0,28069.0,0.035813]
[1680535560235,2.00018,28070.0,28069.0,0.035813]
[1680535562007,2.09107681,28070.0,28069.0,0.035813]
[1680535563496,2.09107681,28070.0,28069.0,0.04575]
[1680535563723,2.09107681,28070.0,28069.0,0.06953898]
[1680535564197,2.09089681,28070.0,28069.0,0.43793898]
[1680535564425,2.09089681,28070.0,28069.0,0.43811898]
[1680535564645,2.09089681,28070.0,28069.0,0.7731938]
[1680535564875,2.09089681,28070.0,28069.0,0.7551938]
[1680535565148,2.09089681,28070.0,28069.0,1.43298338]
[1680535565381,2.09089681,28070.0,28069.0,1.74148338]
[1680535565606,2.09089681,28070.0,28069.0,2.13180394]
[1680535566045,2.09089681,28070.0,28069.0,2.34492185]
[1680535566267,2.09089681,28070.0,28069.0,2.10380394]
[1680535566535,2.09089681,28070.0,28069.0,2.08860098]
[1680535566756,2.09089681,28070.0,28069.0,2.14643035]
[1680535566976,2.09089681,28070.0,28069.0,2.34413377]
[1680535567200,2.09089681,28070.0,28069.0,2.17443035]
[1680535567437,2.09089681,28070.0,28069.0,2.14643035]
[1680535567649,2.09089681,28070.0,28069.0,2.17443035]
[1680535567901,2.09089681,28070.0,28069.0,1.93331244]
[1680535568333,2.09089681,28070.0,28069.0,2.66131244]
[1680535569248,2.09089681,28070.0,28069.0,2.63331244]
[1680535569466,2.09089681,28070.0,28069.0,2.66131244]
[1680535569686,2.09089681,28070.0,28069.0,3.01481691]
[1680535570440,2.09089681,28070.0,28069.0,2.87325905]
[1680535570672,2.09089681,28070.0,28069.0,2.84525905]
[1680535570873,2.09089681,28070.0,28069.0,2.66131244]
[1680535571305,1.72637181,28070.0,28069.0,2.66131244]
[1680535571571,0.93167359,28070.0,28069.0,2.98251244]
[1680535571804,0.65510378,28070.0,28069.0,2.98251244]
[1680535572020,0.65510378,28070.0,28069.0,2.95451244]
[1680535572246,0.65510378,28070.0,28069.0,3.67828423]
[1680535572461,0.65510378,28070.0,28069.0,3.16627822]
[1680535572684,0.21006449,28070.0,28069.0,3.19427822]
[1680535572927,0.21006449,28070.0,28069.0,3.16609822]
[1680535573144,0.21006449,28070.0,28069.0,3.19409822]
[1680535573581,0.21006449,28070.0,28069.0,2.95433244]
[1680535573806,0.21006449,28070.0,28069.0,2.98233244]
[1680535574462,0.03029649,28070.0,28069.0,3.19402763]
[1680535574902,0.03029649,28070.0,28069.0,3.16602763]
[1680535575348,0.03029649,28070.0,28069.0,3.19402763]
[1680535575580,0.03029649,28070.0,28069.0,2.98233244]
[1680535576030,0.03029649,28070.0,28069.0,3.6765836]
[1680535576249,0.00018,28081.0,28078.0,0.5749]
[1680535576476,0.00018,28081.0,28080.0,0.0846]
[1680535576775,0.00018,28081.0,28080.0,0.112337]
[1680535577460,0.00018,28081.0,28080.0,0.487237]
[1680535577701,0.02317,28085.0,28084.0,0.2]
[1680535577938,0.02311,28085.0,28084.0,0.301106]
[1680535578186,0.36605043,28085.0,28084.0,0.017803]
[1680535579336,0.36605043,28085.0,28084.0,0.041803]
[1680535580465,0.36605043,28085.0,28084.0,0.017803]
[1680535580697,0.36605043,28085.0,28084.0,0.041803]
[1680535580910,0.36605043,28085.0,28084.0,0.017803]
[1680535581129,0.36605043,28085.0,28084.0,0.041803]
[1680535581350,0.36605043,28085.0,28084.0,0.017803]
[1680535581574,0.36605043,28085.0,28084.0,0.041803]
[1680535581575,0.02317,28085.0,28084.0,0.041803]
[1680535581795,0.02317,28085.0,28084.0,0.017803]
[1680535582019,0.02317,28085.0,28084.0,0.041803]
[1680535582245,0.02317,28085.0,28084.0,0.017803]
[1680535583386,0.02317,28085.0,28084.0,0.045803]
[1680535583837,0.02317,28085.0,28084.0,0.97541356]
[1680535584068,0.02317,28085.0,28084.0,1.72758056]
[1680535584752,0.02317,28085.0,28084.0,1.54955056]
[1680535584976,0.02317,28085.0,28084.0,1.52155056]
[1680535585195,0.02317,28085.0,28084.0,1.54955056]
[1680535585650,0.02317,28085.0,28084.0,0.81994]
[1680535585882,0.02317,28085.0,28084.0,1.19484]
[1680535586791,0.02317,28085.0,28084.0,1.16684]
[1680535587287,0.02317,28085.0,28084.0,1.19484]
[1680535589506,0.02317,28085.0,28084.0,1.72758056]
[1680535589952,0.02317,28085.0,28084.0,1.64308056]
[1680535590622,0.02317,28085.0,28084.0,1.61508056]
[1680535590851,0.02317,28085.0,28084.0,1.67869056]
[1680535591099,0.02317,28085.0,28084.0,2.99737956]
[1680535591566,0.16488681,28085.0,28084.0,0.59173]
[1680535591806,0.02317,28085.0,28084.0,0.52812]
[1680535592043,0.08723381,28085.0,28084.0,0.55612]
[1680535592270,0.08723381,28085.0,28084.0,0.52812]
[1680535592518,0.08723381,28085.0,28084.0,0.55612]
[1680535592977,0.08723381,28085.0,28084.0,0.52812]
[1680535593210,0.08723381,28085.0,28084.0,0.55612]
[1680535593445,0.08723381,28085.0,28084.0,0.52812]
[1680535593681,0.08723381,28085.0,28084.0,0.55612]
[1680535594856,0.08723381,28085.0,28084.0,0.35612]
[1680535595109,0.08723381,28085.0,28084.0,0.055769]
[1680535595351,0.08723381,28085.0,28084.0,0.045803]
[1680535596805,0.10055519,28085.0,28084.0,0.045803]
[1680535597045,0.49165162,28085.0,28084.0,0.045803]
[1680535597310,0.47833024,28085.0,28084.0,0.045803]
[1680535597754,0.47833024,28085.0,28084.0,0.017803]
[1680535598423,0.47833024,28085.0,28084.0,0.045803]
[1680535599892,0.47803248,28085.0,28084.0,0.045803]
[1680535600132,0.42981648,28085.0,28084.0,0.045803]
[1680535600875,0.47724848,28085.0,28084.0,0.045803]
[1680535601103,0.47960648,28085.0,28084.0,0.045803]
[1680535601543,0.42981648,28085.0,28084.0,0.045803]
[1680535602200,0.47647248,28085.0,28084.0,0.045803]
[1680535602548,0.42981648,28085.0,28084.0,0.045803]
[1680535602870,0.47498948,28085.0,28084.0,0.045803]
[1680535603106,0.42981648,28085.0,28084.0,0.045803]
[1680535603332,0.47913848,28085.0,28084.0,0.045803]
[1680535604501,0.42981648,28085.0,28084.0,0.045803]
[1680535607029,0.08693605,28085.0,28084.0,0.045803]
[1680535607263,0.08693605,28085.0,28084.0,0.053962]
[1680535607748,0.08693605,28085.0,28084.0,0.06435]
[1680535608194,0.08693605,28085.0,28084.0,0.025962]
[1680535608423,0.08693605,28085.0,28084.0,0.064177]
[1680535608664,0.08693605,28085.0,28084.0,0.206055]
[1680535608942,0.08693605,28085.0,28084.0,0.780955]
[1680535609157,0.08693605,28085.0,28084.0,1.089635]
[1680535609650,0.08693605,28085.0,28084.0,1.117635]
[1680535610325,0.08693605,28085.0,28084.0,1.089635]
[1680535610548,0.08693605,28085.0,28084.0,1.153245]
[1680535611216,0.08693605,28085.0,28084.0,1.125245]
[1680535611457,0.08693605,28085.0,28084.0,1.153245]
[1680535612861,0.08693605,28085.0,28084.0,1.125245]
[1680535613099,0.08693605,28085.0,28084.0,1.153245]
[1680535614449,0.08693605,28085.0,28084.0,1.59255556]
[1680535614645,0.08693605,28085.0,28084.0,1.77057556]
[1680535614989,0.08693605,28085.0,28084.0,1.85447556]
[1680535615409,0.08693605,28085.0,28084.0,2.36116747]
[1680535615779,0.08693605,28085.0,28084.0,2.38916747]
[1680535615996,0.08693605,28085.0,28084.0,2.36116747]
[1680535616206,0.08693605,28085.0,28084.0,2.38916747]
[1680535616433,0.08693605,28085.0,28084.0,2.36116747]
[1680535616667,0.08693605,28085.0,28084.0,2.38916747]
[1680535616880,0.08693605,28085.0,28084.0,2.36116747]
[1680535617102,0.08693605,28085.0,28084.0,2.38916747]
[1680535617549,0.08693605,28085.0,28084.0,2.36116747]
[1680535618483,0.08693605,28085.0,28084.0,2.48820533]
[1680535618698,0.08693605,28085.0,28084.0,2.36116747]
[1680535618914,0.08693605,28085.0,28084.0,2.38916747]
[1680535619134,0.08693605,28085.0,28084.0,2.36116747]
[1680535619358,0.08693605,28085.0,28084.0,2.38916747]
[1680535619579,0.08693605,28085.0,28084.0,2.40351342]
[1680535619786,0.08693605,28085.0,28084.0,2.51643908]
[1680535620001,0.08693605,28085.0,28084.0,2.48843908]
[1680535620213,0.08693605,28085.0,28084.0,2.43183908]
[1680535620458,0.08693605,28085.0,28084.0,2.34691342]
[1680535621316,0.08693605,28085.0,28084.0,2.48829724]
[1680535621568,0.08693605,28085.0,28084.0,2.34691342]
[1680535621796,0.08686982,28085.0,28084.0,2.75683342]
[1680535622014,0.08686982,28085.0,28084.0,2.86893342]
[1680535622229,0.08686982,28085.0,28084.0,2.91127938]
[1680535622676,0.08686982,28085.0,28084.0,2.88327938]
[1680535622928,0.08686982,28085.0,28084.0,2.91145938]
[1680535623147,0.22876663,28085.0,28084.0,2.93666915]
[1680535623380,0.08686982,28085.0,28084.0,2.41428852]
[1680535623596,0.08686982,28085.0,28084.0,2.59230852]
[1680535624032,0.08686982,28085.0,28084.0,2.56430852]
[1680535624253,0.08686982,28085.0,28084.0,2.4229247]
[1680535624468,0.08686982,28085.0,28084.0,2.3949247]
[1680535624696,0.08686982,28085.0,28084.0,2.4314247]
[1680535626057,0.08686982,28085.0,28084.0,2.0854047]
[1680535626268,0.08686982,28085.0,28084.0,2.1703378]
[1680535626732,2.0,28090.0,28089.0,0.61051]
[1680535626948,2.0,28090.0,28089.0,3.01416073]
[1680535627177,2.0,28090.0,28089.0,3.32266073]
[1680535627385,2.0,28090.0,28089.0,3.15292655]
[1680535628275,1.99994,28090.0,28089.0,3.35066482]
[1680535628709,1.99994,28090.0,28089.0,3.12268001]
[1680535629403,1.99994,28090.0,28089.0,2.99546083]
[1680535629639,1.99994,28090.0,28089.0,3.12271436]
[1680535629863,1.98994,28090.0,28089.0,3.12271436]
[1680535630518,1.98994,28090.0,28089.0,3.03774552]
[1680535630938,1.98994,28090.0,28089.0,2.91049199]
[1680535632227,1.98994,28090.0,28089.0,3.03774269]
[1680535632638,1.98994,28090.0,28089.0,2.91048916]
[1680535633089,2.13183681,28090.0,28089.0,2.12897816]
[1680535633306,1.98994,28090.0,28089.0,1.105401]
[1680535633772,1.99012,28090.0,28089.0,1.105221]
[1680535633986,1.99012,28090.0,28089.0,1.1877611]
[1680535634254,1.99012,28090.0,28089.0,1.105221]
[1680535634480,1.99012,28090.0,28089.0,1.077221]
[1680535634698,1.99012,28090.0,28089.0,1.105221]
[1680535634925,2.02691608,28090.0,28089.0,1.105221]
[1680535635135,2.02691608,28090.0,28089.0,1.113721]
[1680535635355,2.02691608,28090.0,28089.0,1.2250931]
[1680535635576,2.02691608,28090.0,28089.0,1.1970931]
[1680535635777,2.02691608,28090.0,28089.0,1.2250931]
[1680535636012,2.02691608,28090.0,28089.0,1.1970931]
[1680535636236,2.02691608,28090.0,28089.0,1.2250931]
[1680535636453,2.02691608,28090.0,28089.0,1.1970931]
[1680535636681,2.02691608,28090.0,28089.0,1.2250931]
[1680535636911,2.02691608,28090.0,28089.0,1.1970931]
[1680535637145,2.02691608,28090.0,28089.0,1.2250931]
[1680535637357,2.02691608,28090.0,28089.0,1.1970931]
[1680535638086,2.02691608,28090.0,28089.0,0.8410821]
[1680535638282,2.02691608,28090.0,28089.0,1.67378266]
[1680535638542,2.02691608,28090.0,28089.0,1.75838266]
[1680535638766,2.02691608,28090.0,28089.0,1.78638266]
[1680535639216,2.02691608,28090.0,28089.0,2.18638266]
[1680535639456,2.02691608,28090.0,28089.0,2.15838266]
[1680535639684,2.02691608,28090.0,28089.0,2.18656266]
[1680535639908,2.02691608,28090.0,28089.0,2.18638266]
[1680535640348,2.02691608,28090.0,28089.0,2.35838266]
[1680535640861,1.99012,28090.0,28089.0,2.35838266]
[1680535641082,1.99012,28090.0,28089.0,2.18039266]
[1680535641296,1.99012,28090.0,28089.0,2.18057266]
[1680535641297,1.98994,28090.0,28089.0,2.18057266]
[1680535641521,1.98994,28090.0,28089.0,2.20857266]
[1680535641753,2.02344924,28090.0,28089.0,2.18057266]
[1680535641979,2.02344924,28090.0,28089.0,2.20857266]
[1680535642213,2.02344924,28090.0,28089.0,2.06920056]
[1680535642456,2.02362924,28090.0,28089.0,0.83381]
[1680535642688,2.02362924,28090.0,28089.0,0.132695]
[1680535642921,2.02362924,28090.0,28089.0,0.152603]
[1680535644343,2.02362924,28090.0,28089.0,0.124603]
[1680535644595,2.02362924,28090.0,28089.0,0.152603]
[1680535644814,2.02362924,28090.0,28089.0,0.124603]
[1680535645055,2.40324192,28090.0,28089.0,0.0178]
[1680535645306,2.45048192,28090.0,28089.0,0.0458]
[1680535645579,2.23736,28090.0,28089.0,0.0178]
[1680535645848,2.66420662,28090.0,28089.0,0.028]
[1680535646113,0.4,28089.0,28088.0,0.0178]
[1680535646380,0.2,28086.0,28085.0,0.106815]
[1680535646611,0.20018,28086.0,28085.0,0.124618]
[1680535647079,0.20018,28086.0,28085.0,0.053408]
[1680535647080,0.62743365,28086.0,28085.0,0.053408]
[1680535647775,0.62743365,28086.0,28085.0,0.081408]
[1680535648753,0.62743365,28086.0,28085.0,0.053408]
[1680535648967,0.62743365,28086.0,28085.0,0.077408]
[1680535650516,0.62743365,28086.0,28085.0,0.041803]
[1680535651041,0.62743365,28086.0,28085.0,0.024]
[1680535651292,0.79170501,28086.0,28085.0,0.041803]
[1680535652110,1.19170501,28086.0,28085.0,0.024]
[1680535653116,1.19170501,28086.0,28084.0,0.017803]
[1680535653480,0.47554904,28085.0,28084.0,0.017803]
[1680535653656,0.59486228,28085.0,28084.0,0.017803]
[1680535653912,0.59492228,28085.0,28084.0,0.017803]
[1680535654174,0.048312,28085.0,28084.0,0.017803]
[1680535654428,0.00018,28085.0,28084.0,0.035803]
[1680535654774,0.00018,28085.0,28084.0,0.017803]
[1680535654987,0.00018,28085.0,28084.0,0.035803]
[1680535660568,0.34306043,28085.0,28084.0,0.035803]
[1680535660794,0.47615943,28085.0,28084.0,0.035803]